bitfinex/quotes_SOLUSD_20260113
["timestamp","ask_amount","ask_price","bid_price","bid_amount"]
[1768278849028,0.67963775,138.49,138.48,1e-08]
[1768278854561,9.35880709,138.49,138.46,0.2]
[1768278855047,0.68134757,138.48,138.46,0.2]
[1768278855759,0.68134757,138.48,138.45,20.01747297]
[1768278855760,0.68134757,138.48,138.45,19.33818278]
[1768278855957,0.68134757,138.48,138.45,17.8991681]
[1768278855958,0.68134757,138.47,138.45,17.8991681]
[1768278856848,0.099,138.49,138.45,25.12172791]
[1768278857057,0.05667186,138.49,138.45,27.25979705]
[1768278857447,2.13806914,138.49,138.45,17.8991681]
[1768278858565,2.13806914,138.49,138.45,18.57845829]
[1768278859060,2.67708857,138.49,138.45,18.57845829]
[1768278859439,0.53901943,138.49,138.45,18.57845829]
[1768278859741,2.13806914,138.49,138.46,0.67929019]
[1768278860569,2.23706914,138.49,138.45,18.57845829]
[1768278860754,0.099,138.49,138.45,18.57845829]
[1768278860959,2.23706914,138.49,138.46,0.67929019]
[1768278861159,0.53461923,138.48,138.45,17.8991681]
[1768278861352,2.13806914,138.49,138.45,18.57845829]
[1768278861553,2.13806914,138.49,138.46,0.67929019]
[1768278862148,2.13806914,138.5,138.46,0.67929019]
[1768278862344,13.18,138.51,138.47,0.67929019]
[1768278862549,15.31806914,138.51,138.47,0.67929019]
[1768278863848,0.10305919,138.5,138.46,107.79516584]
[1768278864050,15.31806914,138.51,138.47,0.67929019]
[1768278864250,13.279,138.51,138.47,0.67929019]
[1768278864552,15.31806914,138.51,138.47,0.67929019]
[1768278864755,2.13806914,138.5,138.47,0.67929019]
[1768278865452,2.23706914,138.5,138.46,107.79516584]
[1768278865900,2.23706914,138.5,138.47,0.67929019]
[1768278865901,2.13806914,138.5,138.47,0.67929019]
[1768278866064,2.23706914,138.5,138.47,0.67929019]
[1768278866251,2.23706914,138.5,138.46,107.79516584]
[1768278866771,2.23706914,138.5,138.46,100.57286371]
[1768278866956,0.50491921,138.49,138.46,100.57286371]
[1768278867477,9.35839231,138.5,138.47,0.67929019]
[1768278868478,2.13806914,138.49,138.47,0.67929019]
[1768278870185,9.35839231,138.5,138.47,0.67929019]
[1768278870575,9.86331152,138.5,138.46,0.67929019]
[1768278870881,2.13806914,138.49,138.46,0.67929019]
[1768278874074,9.35885517,138.49,138.46,0.67929019]
[1768278875477,2.13806914,138.49,138.46,0.67929019]
[1768278878085,2.64298835,138.49,138.46,0.67929019]
[1768278879473,2.64298835,138.49,138.45,17.8991681]
[1768278879674,2.13806914,138.49,138.46,0.68264435]
[1768278879875,2.23706914,138.49,138.45,18.58181245]
[1768278880080,0.50491921,138.48,138.45,18.58181245]
[1768278880387,2.13806914,138.49,138.46,0.68264435]
[1768278880783,2.64708855,138.49,138.45,18.58181245]
[1768278881086,2.13806914,138.49,138.46,0.68264435]
[1768278881391,2.23706914,138.49,138.45,17.8991681]
[1768278881583,0.50491921,138.48,138.45,18.58181245]
[1768278881892,2.13806914,138.49,138.46,0.68264435]
[1768278882080,2.13806914,138.49,138.47,0.68264435]
[1768278882386,2.13806914,138.49,138.46,0.68264435]
[1768278882586,2.13806914,138.49,138.45,17.8991681]
[1768278882988,2.13806914,138.49,138.45,18.58181245]
[1768278883387,2.13806914,138.49,138.46,0.68264435]
[1768278884191,2.13806914,138.49,138.45,17.8991681]
[1768278884596,2.13806914,138.49,138.46,0.68264435]
[1768278885489,2.13806914,138.49,138.45,17.8991681]
[1768278885871,2.13806914,138.49,138.45,18.58181245]
[1768278886070,2.13806914,138.49,138.46,0.68264435]
[1768278886293,2.13806914,138.49,138.45,17.8991681]
[1768278886794,2.13806914,138.49,138.45,18.58181245]
[1768278887293,2.13806914,138.49,138.45,17.8991681]
[1768278887588,2.13806914,138.49,138.46,0.68264435]
[1768278887984,2.13806914,138.49,138.45,17.8991681]
[1768278888299,2.13806914,138.49,138.46,0.68264435]
[1768278888799,2.13806914,138.49,138.45,17.8991681]
[1768278889192,2.13806914,138.49,138.45,18.58181245]
[1768278889404,2.13806914,138.49,138.46,0.68264435]
[1768278889589,2.13806914,138.49,138.45,18.58181245]
[1768278890498,2.13806914,138.49,138.46,0.68264435]
[1768278890697,2.13806914,138.49,138.45,18.58181245]
[1768278891300,2.13806914,138.49,138.46,0.68264435]
[1768278891601,2.13806914,138.49,138.45,17.8991681]
[1768278891802,2.13806914,138.49,138.45,18.58181245]
[1768278892098,2.13806914,138.49,138.46,0.68264435]
[1768278892599,2.13806914,138.49,138.45,17.8991681]
[1768278892802,2.13806914,138.49,138.46,0.68264435]
[1768278893002,2.13806914,138.49,138.45,17.8991681]
[1768278893374,2.13806914,138.49,138.46,0.68264435]
[1768278894290,2.13806914,138.49,138.45,17.8991681]
[1768278894804,2.13806914,138.49,138.46,0.68264435]
[1768278895691,2.13806914,138.49,138.45,18.58181245]
[1768278896003,2.13806914,138.49,138.46,0.68264435]
[1768278896311,2.13806914,138.49,138.45,17.8991681]
[1768278896782,2.13806914,138.49,138.46,0.68264435]
[1768278897097,2.13806914,138.49,138.45,18.58181245]
[1768278897305,2.13806914,138.49,138.46,0.68264435]
[1768278897799,7.2202166,138.5,138.46,0.68264435]
[1768278898005,2.13806914,138.49,138.46,0.68264435]
[1768278898701,2.13806914,138.49,138.45,17.8991681]
[1768278899004,2.13806914,138.49,138.45,18.58181245]
[1768278899186,2.13806914,138.49,138.46,0.68264435]
[1768278899508,2.13806914,138.49,138.45,17.8991681]
[1768278899684,9.35828574,138.5,138.46,0.68264435]
[1768278900306,9.35828574,138.5,138.45,25.80455864]
[1768278900807,9.35828574,138.5,138.46,0.68264435]
[1768278901102,2.13806914,138.47,138.45,17.8991681]
[1768278901308,2.13806914,138.47,138.43,1e-08]
[1768278901309,4.27613828,138.45,138.43,1e-08]
[1768278901487,7.10183014,138.44,138.38,0.2]
[1768278901692,2.13806914,138.39,138.38,0.2]
[1768278901988,15.31806914,138.4,138.34,2.13806914]
[1768278902305,2.80296719,138.4,138.34,2.13806914]
[1768278902483,2.13806914,138.38,138.32,6.7801107]
[1768278902679,0.65945535,138.37,138.33,2.13806914]
[1768278902903,0.11513035,138.38,138.33,2.13806914]
[1768278903109,2.25319949,138.39,138.34,7.22819954]
[1768278903315,0.66489805,138.38,138.34,9.36626868]
[1768278903608,2.13806914,138.39,138.34,9.36626868]
[1768278903809,2.13806914,138.39,138.34,10.04891303]
[1768278903810,0.11513035,138.39,138.34,10.04891303]
[1768278904306,2.13806914,138.4,138.35,0.68264435]
[1768278904484,15.31806914,138.41,138.36,0.70423917]
[1768278904685,15.31806914,138.41,138.37,0.70423917]
[1768278904891,15.31806914,138.41,138.37,7.93103981]
[1768278904892,13.18,138.41,138.37,7.93103981]
[1768278905094,15.31806914,138.41,138.38,0.70423917]
[1768278905616,0.10481867,138.4,138.37,7.22680064]
[1768278906005,15.31806914,138.41,138.37,7.93103981]
[1768278906199,15.31806914,138.41,138.38,0.70423917]
[1768278908502,0.10481867,138.4,138.37,7.22680064]
[1768278908707,0.6808671,138.42,138.37,7.22680064]
[1768278908708,0.6808671,138.42,138.38,0.70423917]
[1768278908905,2.13806914,138.43,138.39,0.70423917]
[1768278909312,3.34390967,138.43,138.39,0.70423917]
[1768278909620,3.44872834,138.43,138.38,4.04814884]
[1768278909808,0.10481867,138.43,138.39,3.34390967]
[1768278909995,16.52390967,138.44,138.39,3.34390967]
[1768278909996,17.21065422,138.44,138.39,11.27408494]
[1768278910199,16.52390967,138.44,138.4,0.70423917]
[1768278910415,3.34390967,138.43,138.4,0.70423917]
[1768278910611,13.18,138.44,138.4,0.70423917]
[1768278910801,13.18,138.44,138.41,0.70423917]
[1768278911209,16.52390967,138.44,138.41,0.70423917]
[1768278911720,16.52390967,138.44,138.39,10.56984577]
[1768278911926,3.34390967,138.44,138.4,0.70423917]
[1768278912220,3.34390967,138.44,138.41,0.70423917]
[1768278912402,3.34390967,138.44,138.4,7.22542066]
[1768278912597,4.02477677,138.44,138.4,7.22542066]
[1768278912798,3.34390967,138.44,138.41,0.70423917]
[1768278913694,3.44872834,138.44,138.4,11.23155313]
[1768278914098,3.34390967,138.44,138.4,10.56933033]
[1768278914300,3.34390967,138.44,138.4,11.23155313]
[1768278914501,3.34390967,138.44,138.41,0.6622228]
[1768278914715,3.34390967,138.43,138.38,110.46378321]
[1768278915122,0.67937955,138.42,138.38,110.46378321]
[1768278915322,4.01763637,138.43,138.38,110.46378321]
[1768278915937,3.34390967,138.43,138.38,110.46378321]
[1768278916306,4.02445956,138.43,138.38,110.46378321]
[1768278916513,3.34390967,138.43,138.38,110.46378321]
[1768278916806,4.02445956,138.43,138.39,0.6622228]
[1768278917628,3.34390967,138.43,138.39,0.6622228]
[1768278918410,10.5673217,138.44,138.4,0.6622228]
[1768278919730,0.67379494,138.43,138.39,4.00613247]
[1768278920134,0.67379494,138.43,138.4,0.6622228]
[1768278920335,11.24794051,138.44,138.4,0.6622228]
[1768278921530,10.5673217,138.44,138.4,0.6622228]
[1768278922411,7.22341203,138.44,138.4,0.6622228]
[1768278922616,10.5673217,138.44,138.4,0.6622228]
[1768278925039,11.24787159,138.44,138.4,0.6622228]
[1768278925222,0.67379494,138.43,138.39,3.34390967]
[1768278925416,0.68048234,138.42,138.39,3.34390967]
[1768278925616,0.68048234,138.42,138.38,4.00613247]
[1768278925817,4.02439201,138.42,138.38,0.6622228]
[1768278926032,17.22439201,138.42,138.38,0.6622228]
[1768278928821,0.67386181,138.41,138.37,10.57089455]
[1768278929342,0.67386181,138.41,138.37,3.34390967]
[1768278929645,0.67386181,138.41,138.37,4.00613247]
[1768278930043,0.67386181,138.41,138.37,3.34390967]
[1768278930348,16.54390967,138.42,138.38,0.6622228]
[1768278931932,17.21763637,138.42,138.38,0.6622228]
[1768278932663,13.8737267,138.42,138.38,0.6622228]
[1768278932864,17.21763637,138.42,138.38,0.6622228]
[1768278934348,17.21763637,138.42,138.38,0.07075469]
[1768278935250,16.54390967,138.42,138.38,0.07075469]
[1768278936851,0.68611743,138.41,138.37,10.570898]
[1768278937153,0.68611743,138.41,138.37,11.26320768]
[1768278937835,16.54390967,138.42,138.38,0.69230968]
[1768278938035,13.88611743,138.42,138.38,4.03621935]
[1768278940127,13.88611743,138.42,138.38,0.43805817]
[1768278941243,0.68611743,138.41,138.38,0.43805817]
[1768278942135,0.68611743,138.41,138.4,3.34390967]
[1768278942427,0.68611743,138.43,138.4,3.34390967]
[1768278942631,4.85062566,138.42,138.4,3.34390967]
[1768278942849,0.68611743,138.43,138.4,3.34390967]
[1768278943057,4.85128224,138.42,138.4,3.34390967]
[1768278943254,0.68611743,138.43,138.4,3.34390967]
[1768278943438,4.85436547,138.42,138.4,3.34390967]
[1768278943638,0.68611743,138.43,138.4,3.34390967]
[1768278943839,4.85436547,138.42,138.4,3.34390967]
[1768278944145,0.68611743,138.43,138.4,3.34390967]
[1768278944343,4.85431456,138.42,138.4,3.34390967]
[1768278944543,4.85431456,138.41,138.4,3.34390967]
[1768278944855,0.68611743,138.43,138.4,3.34390967]
[1768278945452,0.68611743,138.43,138.39,3.69898104]
[1768278945647,0.68611743,138.42,138.39,3.34390967]
[1768278946052,0.68611743,138.42,138.39,3.69898104]
[1768278946263,0.68611743,138.42,138.38,0.35507137]
[1768278946561,0.68611743,138.42,138.39,3.34390967]
[1768278946740,0.68611743,138.42,138.38,3.69898104]
[1768278947254,0.68611743,138.42,138.39,3.34390967]
[1768278947954,11.25401268,138.43,138.39,3.69898104]
[1768278949067,0.68611743,138.42,138.39,3.69898104]
[1768278949257,0.68611743,138.42,138.39,3.34390967]
[1768278951958,0.68611743,138.42,138.38,0.35507137]
[1768278952150,7.91010301,138.43,138.39,3.69898104]
[1768278952744,7.91010301,138.43,138.4,0.35507137]
[1768278952943,7.91010301,138.43,138.39,3.34390967]
[1768278953145,7.91010301,138.43,138.4,0.35507137]
[1768278953559,7.91010301,138.43,138.39,3.69898104]
[1768278954661,0.68611743,138.42,138.39,3.34390967]
[1768278955551,0.68611743,138.42,138.39,3.69898104]
[1768278955863,0.68611743,138.42,138.39,3.34390967]
[1768278956162,0.68611743,138.42,138.39,3.69898104]
[1768278956539,7.22398558,138.43,138.4,0.35507137]
[1768278956738,4.86376604,138.42,138.39,3.69898104]
[1768278956965,4.86376604,138.41,138.39,3.69898104]
[1768278957263,4.86376604,138.4,138.39,3.69898104]
[1768278957464,3.58128094,138.4,138.39,3.69898104]
[1768278958253,3.58128094,138.4,138.39,0.35507137]
[1768278958452,3.58128094,138.4,138.39,3.69898104]
[1768278959149,3.58128094,138.4,138.39,0.35507137]
[1768278959575,3.58128094,138.4,138.39,3.69898104]
[1768278960368,3.58128094,138.4,138.39,3.34390967]
[1768278961672,3.22620957,138.4,138.39,3.34390967]
[1768278963358,0.68611743,138.42,138.39,3.34390967]
[1768278964255,0.68611743,138.43,138.39,3.34390967]
[1768278969065,0.68353803,138.43,138.39,3.34390967]
[1768278969456,0.68353803,138.43,138.39,2.13993086]
[1768278971577,0.68353803,138.43,138.4,2.13993086]
[1768278971875,0.68353803,138.43,138.4,0.45288792]
[1768278976077,0.68353803,138.43,138.4,2.13993086]
[1768278976967,0.68353803,138.43,138.4,2.59281878]
[1768278977159,0.68353803,138.43,138.4,2.13993086]
[1768278978677,0.68353803,138.43,138.39,2.59281878]
[1768278980461,0.68353803,138.43,138.38,9.36590596]
[1768278981274,0.68353803,138.43,138.38,9.81879388]
[1768278983185,0.68353803,138.43,138.38,9.36590596]
[1768278983587,0.68353803,138.43,138.38,9.81879388]
[1768278983776,0.68353803,138.43,138.38,9.36590596]
[1768278984091,2.82346889,138.43,138.38,9.36590596]
[1768278984294,0.66103493,138.42,138.38,9.36590596]
[1768278985093,0.66103493,138.42,138.38,9.81879388]
[1768278987682,16.00096579,138.44,138.4,0.45288792]
[1768278987880,16.00096579,138.44,138.4,0.09803743]
[1768278988693,0.66103493,138.43,138.39,9.36585565]
[1768278989089,13.2,138.45,138.41,2.13993086]
[1768278989276,13.2,138.45,138.39,7.22592479]
[1768278989597,16.00096579,138.45,138.4,2.13993086]
[1768278989778,16.00096579,138.45,138.4,2.23796829]
[1768278989979,0.66103493,138.44,138.41,2.13993086]
[1768278991300,13.2,138.45,138.41,2.23796829]
[1768278991496,13.86103493,138.45,138.41,2.23796829]
[1768278991698,13.86103493,138.45,138.4,9.36508544]
[1768278991699,0.66103493,138.44,138.4,9.36508544]
[1768278992200,0.66103493,138.44,138.4,9.46312287]
[1768278992782,15.33993086,138.45,138.4,9.46312287]
[1768278992996,15.33993086,138.45,138.41,2.23796829]
[1768278992997,13.86103493,138.45,138.41,2.23796829]
[1768278993195,0.66103493,138.44,138.41,2.13993086]
[1768278993597,13.86103493,138.45,138.41,2.23796829]
[1768278995607,0.6953339,138.44,138.41,2.13993086]
[1768278996601,13.8953339,138.45,138.41,2.23796829]
[1768278996905,16.03526476,138.45,138.41,2.23796829]
[1768278997706,0.6953339,138.44,138.41,2.13993086]
[1768278998006,0.6953339,138.44,138.4,9.46312287]
[1768278999798,0.6953339,138.44,138.4,2.13993086]
[1768278999997,2.83526476,138.43,138.39,0.09803743]
[1768279000191,0.6953339,138.4,138.36,0.09803743]
[1768279000382,0.6953339,138.4,138.36,9.46546563]
[1768279002006,0.6953339,138.4,138.36,9.3674282]
[1768279002505,0.6953339,138.4,138.36,7.22749734]
[1768279005511,0.6953339,138.39,138.35,9.36789376]
[1768279007615,0.66533391,138.39,138.35,9.36789376]
[1768279008552,0.63533392,138.39,138.35,9.36789376]
[1768279009124,0.63533392,138.39,138.35,9.52593117]
[1768279010113,0.63533392,138.39,138.35,9.36789376]
[1768279010319,0.63533392,138.39,138.35,2.13993086]
[1768279010919,0.63533392,138.39,138.34,0.15803741]
[1768279011103,0.63533392,138.39,138.35,2.13993086]
[1768279011801,0.63533392,138.39,138.34,0.15803741]
[1768279011999,0.63533392,138.39,138.35,2.13993086]
[1768279012631,0.63533392,138.39,138.35,9.36795809]
[1768279015529,0.6953339,138.38,138.34,9.36849815]
[1768279015730,0.66533391,138.38,138.34,9.36849815]
[1768279016025,0.66533391,138.38,138.34,7.22856729]
[1768279016228,2.13993086,138.38,138.34,7.22856729]
[1768279016412,2.13993086,138.39,138.34,7.22856729]
[1768279017723,0.6953339,138.38,138.34,7.22856729]
[1768279019221,0.6953339,138.38,138.34,9.36849815]
[1768279023619,0.6953339,138.38,138.34,9.55653555]
[1768279028238,0.6953339,138.38,138.35,2.32796826]
[1768279028542,0.65853443,138.4,138.37,2.13993086]
[1768279028726,0.61621937,138.4,138.37,2.13993086]
[1768279029040,7.22404871,138.43,138.38,2.37028332]
[1768279029041,2.13993086,138.43,138.38,2.37028332]
[1768279029237,15.33993086,138.44,138.38,9.59641975]
[1768279029536,16.54392226,138.44,138.38,10.80041115]
[1768279029738,23.76732446,138.44,138.38,10.80041115]
[1768279030839,0.65853443,138.43,138.38,10.80041115]
[1768279033042,0.65853443,138.43,138.39,3.34392226]
[1768279033342,0.65853443,138.42,138.38,10.57036057]
[1768279034236,0.68359017,138.41,138.37,7.22681715]
[1768279036244,0.68359017,138.41,138.37,10.57073941]
[1768279036720,0.68359017,138.41,138.37,10.80109187]
[1768279037816,0.68359017,138.41,138.38,3.34392226]
[1768279038033,0.68359017,138.43,138.4,3.34392226]
[1768279038438,0.68359017,138.43,138.4,2.61892226]
[1768279039146,0.68359017,138.43,138.4,3.32662009]
[1768279039443,0.68359017,138.43,138.4,0.70769783]
[1768279039958,13.88359017,138.44,138.4,11.27699908]
[1768279041560,13.2,138.44,138.42,0.70769783]
[1768279042050,13.15769847,138.44,138.43,0.70769783]
[1768279042758,0.68359017,138.46,138.43,0.70769783]
[1768279043740,0.68359017,138.46,138.42,4.05162009]
[1768279044344,4.02751243,138.46,138.42,0.70769783]
[1768279048164,0.68359017,138.45,138.41,10.56865676]
[1768279048453,0.64129772,138.45,138.41,10.56865676]
[1768279048835,0.64129772,138.45,138.41,11.27635459]
[1768279049432,13.2,138.47,138.43,4.05162009]
[1768279049631,7.22072087,138.5,138.45,0.70769783]
[1768279049836,7.22072087,138.5,138.45,0.16644963]
[1768279049837,17.22751243,138.49,138.45,0.16644963]
[1768279050045,13.88359017,138.49,138.45,3.51037189]
[1768279050354,17.22751243,138.49,138.45,0.16644963]
[1768279050849,24.44856683,138.49,138.45,0.16644963]
[1768279052556,24.44856683,138.49,138.45,3.51037189]
[1768279052557,13.88359017,138.49,138.45,3.51037189]
[1768279052747,13.88359017,138.49,138.46,3.34392226]
[1768279053057,0.68359017,138.48,138.45,3.34392226]
[1768279054663,0.68359017,138.48,138.44,10.96344942]
[1768279055954,0.68359017,138.48,138.44,3.34392226]
[1768279056141,0.6832978,138.47,138.43,10.96398943]
[1768279057669,0.6832978,138.47,138.43,10.56759272]
[1768279057968,0.6832978,138.47,138.43,7.62006717]
[1768279058170,0.6832978,138.47,138.43,10.96398943]
[1768279059362,0.6832978,138.47,138.44,3.34392226]
[1768279062142,0.6832978,138.47,138.45,3.34392226]
[1768279062346,0.6832978,138.47,138.46,3.34392226]
[1768279068056,13.18,138.48,138.46,3.34392226]
[1768279070479,13.8632978,138.48,138.46,3.34392226]
[1768279072178,0.6832978,138.47,138.46,3.34392226]
[1768279072483,13.18,138.48,138.46,3.34392226]
[1768279073382,13.18,138.48,138.46,10.56617818]
[1768279073586,13.18,138.5,138.46,10.56617818]
[1768279074386,0.6832978,138.49,138.46,10.56617818]
[1768279075183,0.6832978,138.49,138.45,11.24602284]
[1768279076270,0.6832978,138.49,138.45,0.67931838]
[1768279076471,0.6832978,138.49,138.45,4.02324064]
[1768279080886,3.34392226,138.52,138.47,3.34392226]
[1768279080887,0.54817279,138.51,138.47,3.34392226]
[1768279081073,0.54817279,138.51,138.48,3.34392226]
[1768279083186,0.54817279,138.51,138.47,4.02324064]
[1768279083569,0.68194655,138.5,138.47,3.34392226]
[1768279083770,13.72951052,138.49,138.47,3.34392226]
[1768279085094,13.72951052,138.49,138.46,11.24503086]
[1768279085389,13.18,138.49,138.47,4.00680094]
[1768279085587,13.69445997,138.49,138.47,3.34392226]
[1768279086382,13.69445997,138.49,138.48,3.34392226]
[1768279086576,13.18,138.49,138.48,4.00680094]
[1768279086779,13.18,138.49,138.48,3.34392226]
[1768279087197,13.18,138.49,138.48,4.00680094]
[1768279087900,13.18,138.49,138.48,0.66287868]
[1768279088406,13.18,138.5,138.48,0.66287868]
[1768279088603,0.71735115,138.52,138.49,0.66287868]
[1768279088805,13.18,138.51,138.5,0.66287868]
[1768279089105,13.18,138.51,138.5,0.1602968]
[1768279091476,13.18,138.51,138.49,2.79995058]
[1768279092704,0.71735115,138.5,138.49,2.1370719]
[1768279092891,13.18,138.51,138.49,2.79995058]
[1768279093092,13.13771252,138.51,138.49,2.1370719]
[1768279093602,13.13771252,138.51,138.49,2.79995058]
[1768279095803,13.13771252,138.51,138.49,0.66287868]
[1768279096003,0.68242778,138.5,138.47,0.67354044]
[1768279096304,0.68242778,138.49,138.46,105.11061234]
[1768279096478,0.68242778,138.49,138.41,49.30342125]
[1768279096479,0.68242778,138.47,138.43,7.89706893]
[1768279096679,13.86242778,138.47,138.44,2.1370719]
[1768279096884,13.86242778,138.47,138.44,0.67354044]
[1768279097506,0.68242778,138.46,138.42,2.81061234]
[1768279097708,13.18,138.46,138.43,0.67354044]
[1768279098010,13.18,138.46,138.44,0.67354044]
[1768279102109,13.18,138.46,138.42,10.03486977]
[1768279102295,13.18,138.46,138.43,0.67354044]
[1768279102501,13.86242778,138.46,138.43,0.67354044]
[1768279103010,13.18,138.46,138.43,0.67354044]
[1768279103903,13.86242778,138.46,138.43,0.67354044]
[1768279104297,13.18,138.46,138.43,0.67354044]
[1768279106218,13.86242778,138.46,138.43,0.67354044]
[1768279106719,3.76904296,138.46,138.43,10.03420769]
[1768279106906,13.86242778,138.48,138.44,0.67354044]
[1768279107106,0.68242778,138.47,138.43,10.03420769]
[1768279107311,13.18,138.48,138.44,0.67354044]
[1768279107510,13.86242778,138.48,138.44,0.67354044]
[1768279107712,0.68242778,138.47,138.44,0.67354044]
[1768279108500,0.68242778,138.47,138.44,2.81061234]
[1768279109214,13.18,138.48,138.44,2.81061234]
[1768279109517,21.08318727,138.49,138.45,0.67354044]
[1768279114027,0.68242778,138.48,138.43,2.81061234]
[1768279114332,0.68242778,138.47,138.43,7.89733849]
[1768279114730,0.68242778,138.47,138.44,0.72112034]
[1768279114936,23.23566733,138.49,138.44,0.72112034]
[1768279117120,0.69783594,138.49,138.45,0.72112034]
[1768279120826,0.69783594,138.49,138.44,9.36041737]
[1768279121144,0.69783594,138.49,138.44,10.08153771]
[1768279121539,0.69783594,138.49,138.45,0.72112034]
[1768279122032,13.18,138.5,138.45,0.72112034]
[1768279122214,7.22006288,138.51,138.45,0.72112034]
[1768279122215,0.69783594,138.51,138.47,0.72112034]
[1768279123120,0.69783594,138.52,138.47,2.1370719]
[1768279123314,0.69783594,138.52,138.47,2.85819224]
[1768279123927,0.69783594,138.52,138.48,2.1370719]
[1768279124133,0.69783594,138.52,138.48,2.85819224]
[1768279125137,0.69783594,138.52,138.49,0.72112034]
[1768279130249,0.69783594,138.52,138.47,10.07981668]
[1768279131243,0.69783594,138.52,138.48,0.72112034]
[1768279135645,0.69783594,138.52,138.48,7.94228221]
[1768279135944,0.69783594,138.52,138.49,0.72112034]
[1768279136534,0.69783594,138.52,138.49,0.61882887]
[1768279138549,0.69783594,138.52,138.48,7.22116187]
[1768279138938,0.69783594,138.52,138.47,9.35865965]
[1768279139251,0.41485464,138.51,138.47,2.1370719]
[1768279139953,0.41485464,138.51,138.47,2.85819224]
[1768279141037,0.41485464,138.51,138.47,10.07993356]
[1768279141352,0.41485464,138.51,138.48,0.72112034]
[1768279143664,7.21922963,138.52,138.48,0.72112034]
[1768279143665,7.91706557,138.52,138.48,0.72112034]
[1768279145259,13.38,138.53,138.49,0.67371782]
[1768279145555,13.97581645,138.53,138.49,0.5114289]
[1768279146751,0.79581645,138.53,138.49,9.35774493]
[1768279146952,0.79581645,138.53,138.5,2.1370719]
[1768279146953,0.2,138.53,138.5,2.1370719]
[1768279147538,0.2,138.53,138.51,0.67371782]
[1768279151360,0.2,138.53,138.5,11.23209106]
[1768279152639,0.2,138.57,138.53,0.67371782]
[1768279152839,0.67733516,138.56,138.52,3.33827446]
[1768279153047,0.2,138.57,138.53,7.21858656]
[1768279153358,0.87733516,138.57,138.53,10.55686102]
[1768279153743,0.87733516,138.57,138.53,10.49686102]
[1768279153951,0.87733516,138.57,138.53,10.43686102]
[1768279154352,0.83507528,138.57,138.53,10.43686102]
[1768279154963,0.83507528,138.57,138.54,0.70923364]
[1768279156537,0.15774012,138.57,138.54,7.92733162]
[1768279156742,0.15774012,138.57,138.55,4.0475081]
[1768279156941,0.2,138.58,138.56,0.70923364]
[1768279157550,0.2,138.58,138.56,0.60697376]
[1768279158056,0.2,138.58,138.56,0.51347248]
[1768279158252,0.2,138.58,138.56,7.73049649]
[1768279158454,0.2,138.59,138.56,10.55529847]
[1768279158678,0.2,138.59,138.57,3.33827446]
[1768279158864,0.2,138.59,138.56,10.55529847]
[1768279159369,0.2,138.59,138.56,7.21702401]
[1768279159943,0.85599983,138.59,138.56,7.21702401]
[1768279162659,0.65599983,138.58,138.56,7.21702401]
[1768279163565,0.65599983,138.58,138.56,10.55529847]
[1768279165053,0.65599983,138.58,138.55,28.59902623]
[1768279165470,0.65599983,138.58,138.56,3.33827446]
[1768279166979,0.65599983,138.58,138.56,10.55521476]
[1768279167370,0.65599983,138.58,138.57,3.33827446]
[1768279169175,0.65599983,138.58,138.57,3.23602176]
[1768279169579,0.61374643,138.58,138.57,3.23602176]
[1768279174580,0.61374643,138.58,138.56,7.2169403]
[1768279174784,0.61374643,138.58,138.57,3.33827446]
[1768279176187,0.2,138.59,138.57,3.33827446]
[1768279176583,0.8836757,138.59,138.56,11.05889004]
[1768279176889,0.8836757,138.59,138.58,3.33827446]
[1768279184390,0.2,138.61,138.58,11.22644911]
[1768279184574,0.2,138.61,138.58,7.21604849]
[1768279185284,0.2,138.61,138.59,3.33827446]
[1768279185793,0.2,138.61,138.58,3.33827446]
[1768279193275,0.2,138.61,138.58,11.22643815]
[1768279195811,0.2,138.61,138.58,7.88816369]
[1768279195986,0.2,138.61,138.58,11.22643815]
[1768279201392,0.2,138.61,138.57,0.67212616]
[1768279201590,3.53827446,138.61,138.56,4.01040062]
[1768279202508,3.53827446,138.61,138.57,7.21650689]
[1768279204711,3.53827446,138.61,138.56,11.2274427]
[1768279205208,0.2,138.61,138.56,11.2274427]
[1768279205417,0.2,138.61,138.57,4.02113764]
[1768279212721,0.2,138.61,138.58,0.68286318]
[1768279212927,0.26,138.61,138.58,0.58061896]
[1768279222927,0.10224422,138.6,138.56,7.88128544]
[1768279223832,0.10224422,138.6,138.57,0.66424336]
[1768279230942,0.10224422,138.6,138.57,7.88074343]
[1768279231319,0.10224422,138.6,138.57,10.01533644]
[1768279231534,13.38,138.61,138.58,0.66424336]
[1768279232036,13.479,138.61,138.58,0.66424336]
[1768279232214,0.299,138.61,138.58,0.66424336]
[1768279232938,0.299,138.61,138.58,0.17440625]
[1768279233537,0.2,138.61,138.58,0.17440625]
[1768279234237,0.299,138.61,138.58,0.17440625]
[1768279235431,0.2,138.61,138.6,0.72245455]
[1768279235632,0.2,138.61,138.6,2.85704756]
[1768279236043,0.2,138.61,138.6,0.72245455]
[1768279236251,0.2,138.61,138.6,2.85704756]
[1768279241224,0.2,138.61,138.6,0.72245455]